bitfinex-derivatives/quotes_BNBF0:USTF0_20250305
["timestamp","ask_amount","ask_price","bid_price","bid_amount"]
[1741139699008,0.31177916,590.09,588.73,0.3397143]
[1741139699211,0.33893709,590.08,588.73,0.3397143]
[1741139702307,0.33893709,590.08,588.74,1.26000879]
[1741139702512,0.31178066,590.07,588.74,1.26000879]
[1741139702714,0.33895432,590.05,588.74,1.26000879]
[1741139702913,0.31178066,590.04,588.74,1.26000879]
[1741139703108,0.33896581,590.03,588.74,1.26000879]
[1741139703309,0.31178066,590.02,588.74,1.26000879]
[1741139703911,0.31182873,590.01,588.74,1.26000879]
[1741139704118,0.31182873,590.0,588.73,0.3397143]
[1741139704314,0.31182873,590.02,588.73,0.3397143]
[1741139704513,0.31182873,590.01,588.73,0.3397143]
[1741139704713,0.31182873,590.02,588.73,0.3397143]
[1741139705018,0.31182873,590.01,588.73,0.3397143]
[1741139705210,0.31182873,590.0,588.73,0.3397143]
[1741139705408,0.31182873,589.99,588.73,0.3397143]
[1741139705615,0.31182873,590.02,588.73,0.3397143]
[1741139705813,0.31182873,590.01,588.73,0.3397143]
[1741139706017,0.31182873,590.0,588.73,0.3397143]
[1741139706314,0.31182873,589.99,588.73,0.3397143]
[1741139706515,0.31182873,589.98,588.73,0.3397143]
[1741139706823,0.31182781,589.97,588.73,0.3397143]
[1741139707015,0.31182781,590.0,588.73,0.3397143]
[1741139708415,0.33896581,590.03,588.73,0.3397143]
[1741139713322,0.33896581,590.03,588.95,1.26000879]
[1741139713520,0.33896581,590.03,588.96,0.33958163]
[1741139715421,2.85958209,590.84,588.96,0.33958163]
[1741139715626,5.35303474,590.84,588.96,0.33958163]
[1741139715827,4.1527372,590.83,588.96,0.33958163]
[1741139716027,4.14163156,590.82,588.96,0.33958163]
[1741139716321,1.20029754,590.81,588.96,0.33958163]
[1741139716523,5.3419291,590.81,588.96,0.33958163]
[1741139716726,5.3419291,590.8,588.96,0.33958163]
[1741139716926,0.33879355,590.33,588.96,0.33958163]
[1741139723133,0.54179355,590.33,588.96,0.33958163]
[1741139743050,0.54179355,590.33,588.96,1.59959042]
[1741139743252,0.54179355,590.33,589.08,1.26000879]
[1741139743454,0.54179355,590.33,589.09,0.33950669]
[1741139745950,0.54179355,590.33,589.15,1.26000879]
[1741139747859,0.54179355,590.33,589.09,0.33950669]
[1741139747860,0.54179355,590.33,589.19,1.26000879]
[1741139749453,0.31161156,590.32,589.19,1.26000879]
[1741139749758,0.33880503,590.31,589.19,1.26000879]
[1741139750259,0.31164438,590.3,589.19,1.26000879]
[1741139750458,0.31164438,590.3,589.09,0.33950669]
[1741139750459,0.33881651,590.29,589.1,1.26000879]
[1741139750757,0.31164438,590.28,589.1,1.26000879]
[1741139750953,0.33882799,590.27,589.1,1.26000879]
[1741139751158,0.31164438,590.26,589.1,1.26000879]
[1741139751658,0.3116374,590.25,589.1,1.26000879]
[1741139751857,0.3116374,590.26,589.1,1.26000879]
[1741139753059,0.196,590.25,589.1,1.26000879]
[1741139753259,0.3116374,590.24,589.15,1.26000879]
[1741139753458,0.31164694,590.23,589.15,1.26000879]
[1741139753759,0.196,590.25,589.15,1.26000879]
[1741139753760,0.31164694,590.22,589.15,1.26000879]
[1741139754058,0.196,590.25,589.15,1.26000879]
[1741139754059,0.65050937,590.21,589.15,1.26000879]
[1741139754253,0.65051512,590.2,589.15,1.26000879]
[1741139754457,0.31164694,590.19,589.15,1.26000879]
[1741139754859,0.33887966,590.18,589.15,1.26000879]
[1741139755059,0.31164694,590.17,589.15,1.26000879]
[1741139755255,0.33889114,590.16,589.15,1.26000879]
[1741139755453,0.31164694,590.15,589.15,1.26000879]
[1741139756261,0.31164694,590.15,589.11,1.77099988]
[1741139756656,0.33889114,590.16,589.11,1.77099988]
[1741139758556,0.33889114,590.16,589.09,0.33950669]
[1741139760864,0.33889114,590.16,589.1,1.77070701]
[1741139762265,0.33889114,590.16,589.09,0.33950669]
[1741139765068,0.33889114,590.16,589.1,1.26000879]
[1741139766573,0.33889114,590.16,589.09,0.33950669]
[1741139766574,0.33889114,590.16,589.13,1.26000879]
[1741139768874,0.33884521,590.24,589.13,1.26000879]
[1741139769174,0.31164841,590.23,589.13,1.26000879]
[1741139769374,0.33885669,590.22,589.19,1.26000879]
[1741139769769,0.31165312,590.21,589.19,1.26000879]
[1741139770171,0.33886818,590.2,589.19,1.26000879]
[1741139770375,0.31165312,590.19,589.19,1.26000879]
[1741139770577,0.33887966,590.18,589.19,1.26000879]
[1741139770775,0.31165312,590.17,589.19,1.26000879]
[1741139770979,0.33889114,590.16,589.19,1.26000879]
[1741139771173,0.31165312,590.15,589.19,1.26000879]
[1741139771379,0.33890263,590.14,589.19,1.26000879]
[1741139771579,0.33890263,590.14,589.16,1.26000879]
[1741139774083,0.33890263,590.14,589.09,0.33950669]
[1741139779177,0.33890263,590.14,589.1,1.26000879]
[1741139781984,0.33890263,590.14,589.25,1.26000879]
[1741139782685,0.31166049,590.13,589.25,1.26000879]
[1741139783078,0.33891411,590.12,589.25,1.26000879]
[1741139783478,0.31166049,590.11,589.25,1.26000879]
[1741139783683,0.3389256,590.1,589.25,1.26000879]
[1741139783885,0.31166049,590.09,589.25,1.26000879]
[1741139784085,0.33893709,590.08,589.25,1.26000879]
[1741139784386,0.31166049,590.07,589.25,1.26000879]
[1741139784584,0.33894858,590.06,589.25,1.26000879]
[1741139784785,0.31166049,590.05,589.25,1.26000879]
[1741139784983,0.33896007,590.04,589.25,1.26000879]
[1741139785183,0.52696007,590.04,589.25,1.26000879]
[1741139785484,0.52696007,590.04,589.19,1.26000879]
[1741139785882,0.31170706,590.03,589.19,1.26000879]
[1741139786084,0.33897156,590.02,589.19,1.26000879]
[1741139788285,0.33897156,590.02,589.09,1.26000879]
[1741139789581,0.31172163,590.01,589.09,1.26000879]
[1741139789785,0.33898305,590.0,589.09,1.26000879]
[1741139789986,0.31181295,589.99,589.09,1.26000879]
[1741139790290,0.33899454,589.98,588.93,1.26000879]
[1741139790688,0.31181508,589.97,588.93,1.26000879]
[1741139790989,0.33900603,589.96,588.93,1.26000879]
[1741139792289,0.31184239,589.95,588.93,1.26000879]
[1741139792489,0.33902327,589.93,588.93,1.26000879]
[1741139792790,0.31184239,589.92,588.93,1.26000879]
[1741139792991,0.31184239,589.92,588.59,1.26000879]
[1741139793386,0.31185185,589.91,588.59,1.26000879]
[1741139793586,0.65089236,589.9,588.59,1.26000879]
[1741139793782,0.65089811,589.89,588.59,1.26000879]
[1741139793987,0.65090386,589.88,588.59,1.26000879]
[1741139794289,0.6509096,589.87,588.59,1.26000879]
[1741139794583,0.65091535,589.86,588.59,1.26000879]
[1741139794783,0.6509211,589.85,588.59,1.26000879]
[1741139795089,0.65093033,589.84,588.64,1.26000879]
[1741139795285,0.33908075,589.83,588.64,1.26000879]
[1741139797388,0.33908075,589.83,588.6,1.77229265]
[1741139797586,0.33908075,589.83,587.89,1.26000879]
[1741139797788,0.33908075,589.83,588.6,1.7718565]
[1741139797989,0.33908075,589.83,587.89,1.26000879]
[1741139798389,0.33908075,589.83,588.6,1.7718565]
[1741139798688,0.33908075,589.83,587.89,1.26000879]
[1741139799991,0.33908075,589.83,582.27,19.99330863]
[1741139799992,0.33908075,589.83,588.17,1.77214223]
[1741139800587,0.33908075,589.83,588.19,0.34002618]
[1741139802388,0.33908075,589.83,588.34,1.26000879]
[1741139802592,0.33908075,589.83,588.35,0.33993371]
[1741139807493,0.52208075,589.83,588.35,0.33993371]
[1741139809597,0.52208075,589.83,588.61,1.26000879]
[1741139811900,0.52208075,589.83,588.65,1.26000879]
[1741139812104,0.52208075,589.83,588.66,0.33975469]
[1741139814105,0.52208075,589.83,588.69,1.26000879]
[1741139814500,0.52208075,589.83,588.7,0.33973161]
[1741139818209,0.52208075,589.83,588.89,1.26000879]
[1741139821015,0.52208075,589.83,588.7,0.33973161]
[1741139823915,0.52208075,589.83,588.84,1.26000879]
[1741139825922,0.52208075,589.83,588.9,1.26000879]
[1741139828736,0.52208075,589.83,588.81,1.26000879]
[1741139831127,0.52208075,589.83,588.82,1.26000879]
[1741139833830,0.52208075,589.83,588.73,0.3397143]
[1741139837629,0.52208075,589.83,588.87,1.26000879]
[1741139839825,0.52208075,589.83,588.82,1.26000879]
[1741139843029,0.52208075,589.83,589.02,1.26000879]
[1741139845438,0.52208075,589.83,589.06,1.26000879]
[1741139848535,0.52208075,589.83,588.73,0.3397143]
[1741139848536,0.52208075,589.83,589.1,1.26000879]
[1741139850835,0.52208075,589.83,588.74,2.57251795]
[1741139850836,0.52208075,589.83,588.75,1.26000879]
[1741139853540,0.52208075,589.83,588.81,1.26000879]
[1741139855944,0.52208075,589.83,589.12,1.26000879]
[1741139858052,0.52208075,589.83,589.08,1.26000879]
[1741139860147,0.52208075,589.83,589.04,1.26000879]
[1741139862153,0.52208075,589.83,588.73,0.3397143]
[1741139867257,0.52208075,589.83,589.07,1.26000879]
[1741139869861,0.52208075,589.83,589.04,1.26000879]
[1741139872257,0.52208075,589.83,589.07,1.26000879]
[1741139874263,0.52208075,589.83,589.18,1.26000879]
[1741139876057,0.52208075,589.83,588.88,1.26000879]
[1741139878463,0.52208075,589.83,589.06,1.26000879]
[1741139880664,0.52208075,589.83,589.03,1.26000879]
[1741139882567,0.52208075,589.83,588.73,0.3397143]
[1741139884969,0.52208075,589.83,589.01,1.26000879]
[1741139887268,0.52208075,589.83,589.05,1.26000879]
[1741139890272,0.52208075,589.83,589.06,1.26000879]
[1741139892678,0.52208075,589.83,588.97,1.26000879]
[1741139895281,0.52208075,589.83,589.12,1.26000879]
[1741139897080,0.183,589.83,589.12,1.26000879]
[1741139897281,0.183,589.83,589.16,1.26000879]
[1741139899589,0.183,589.83,588.83,1.26000879]
[1741139899786,0.183,589.83,588.85,0.33964507]
[1741139903391,0.183,589.83,589.19,1.26000879]
[1741139906194,0.183,589.83,589.02,1.26000879]
[1741139906594,0.183,589.83,589.03,0.33954127]
[1741139908890,0.183,589.83,589.03,1.59955006]
[1741139911398,0.183,589.83,589.03,0.33954127]
[1741139914599,0.183,589.83,589.13,1.26000879]
[1741139917500,0.183,589.83,589.24,1.26000879]
[1741139919302,0.183,589.83,589.11,1.26000879]
[1741139921505,0.183,589.83,589.28,1.26000879]
[1741139921905,1.01067872,590.85,589.28,1.26000879]
[1741139922207,1.32223871,590.84,589.28,1.26000879]
[1741139922507,0.31155999,590.83,589.28,1.26000879]
[1741139922707,0.3385183,590.81,589.28,1.26000879]
[1741139922908,0.31155999,590.8,589.28,1.26000879]
[1741139923107,0.33853549,590.78,589.28,1.26000879]
[1741139923303,0.31155999,590.77,589.28,1.26000879]
[1741139923507,0.33853549,590.78,589.31,1.26000879]
[1741139923508,0.33855268,590.75,589.31,1.26000879]
[1741139923708,0.31155999,590.74,589.31,1.26000879]
[1741139924006,0.33856988,590.72,589.31,1.26000879]
[1741139924202,0.31155999,590.71,589.31,1.26000879]
[1741139924406,0.33858707,590.69,589.31,1.26000879]
[1741139924606,0.31155999,590.68,589.31,1.26000879]
[1741139924802,0.33860427,590.66,589.31,1.26000879]
[1741139925008,0.31155999,590.65,589.31,1.26000879]
[1741139925205,0.31155999,590.65,589.03,0.33954127]
[1741139925206,0.33862147,590.63,589.34,1.26000879]
[1741139925409,0.31156139,590.62,589.34,1.26000879]
[1741139925605,0.33863867,590.6,589.34,1.26000879]
[1741139925810,0.31156139,590.59,589.34,1.26000879]
[1741139926005,0.33865587,590.57,589.34,1.26000879]
[1741139926204,0.31156139,590.56,589.34,1.26000879]
[1741139926405,0.33867307,590.54,589.34,1.26000879]
[1741139926606,0.31156139,590.53,589.34,1.26000879]
[1741139926812,0.33869028,590.51,589.34,1.26000879]
[1741139927010,0.31156199,590.5,589.34,1.26000879]
[1741139927311,0.33870749,590.48,589.34,1.26000879]
[1741139927606,0.31156199,590.47,589.34,1.26000879]
[1741139927813,0.33871896,590.46,589.36,1.26000879]
[1741139928008,0.31156199,590.45,589.36,1.26000879]
[1741139928209,0.33873043,590.44,589.36,1.26000879]
[1741139928404,0.31156199,590.43,589.36,1.26000879]
[1741139928609,0.65030479,590.42,589.36,1.26000879]
[1741139928810,0.65031052,590.41,589.36,1.26000879]
[1741139929112,0.33875338,590.4,589.36,1.26000879]
[1741139929513,0.3115778,590.39,589.36,1.26000879]
[1741139929714,0.33876486,590.38,589.36,1.26000879]
[1741139929911,0.3115778,590.37,589.43,1.26000879]
[1741139930213,0.65035668,590.36,589.43,1.26000879]
[1741139930414,0.33878207,590.35,589.43,1.26000879]
[1741139932412,0.31157936,590.34,589.43,1.26000879]
[1741139932611,0.31157936,590.34,589.19,1.51201055]
[1741139932612,0.33879355,590.33,589.3,1.26000879]
[1741139935213,0.33879355,590.33,589.39,1.26000879]
[1741139938116,0.33879355,590.33,589.3,1.26000879]
[1741139940816,0.33879355,590.33,589.34,1.26000879]
[1741139942912,0.33879355,590.33,589.35,1.26000879]
[1741139945918,0.33879355,590.33,589.36,1.26000879]
[1741139946615,0.31156483,590.32,589.36,1.26000879]
[1741139946917,0.33880503,590.31,589.36,1.26000879]
[1741139947514,0.31156483,590.3,589.36,1.26000879]
[1741139947717,0.33881651,590.29,589.36,1.26000879]
[1741139948620,0.33881651,590.29,589.46,1.26000879]
[1741139950421,0.33881651,590.29,589.37,1.26000879]
[1741139952626,0.33881651,590.29,589.45,1.26000879]
[1741139955323,0.33881651,590.29,589.44,1.26000879]
[1741139957229,0.149,590.28,589.44,1.26000879]
[1741139957422,0.149,590.28,589.3,1.26000879]
[1741139959829,0.149,590.28,589.03,0.33954127]
[1741139959830,0.149,590.28,589.47,1.26000879]
[1741139962334,0.149,590.28,589.45,1.26000879]
[1741139964132,0.149,590.28,589.31,1.26000879]
[1741139966139,0.149,590.28,589.32,0.33937419]
[1741139968336,1.01217779,591.26,589.32,0.33937419]
[1741139968539,0.3382721,591.24,589.32,0.33937419]
[1741139968746,0.31139036,591.23,589.32,0.33937419]
[1741139968939,0.33828927,591.21,589.32,0.33937419]
[1741139969140,0.31139036,591.2,589.32,0.33937419]
[1741139969341,0.33830643,591.18,589.32,0.33937419]
[1741139969542,0.31139036,591.17,589.32,0.33937419]
[1741139969738,0.3383236,591.15,589.32,0.33937419]
[1741139969941,0.31139036,591.14,589.32,0.33937419]
[1741139970146,0.33834077,591.12,589.32,0.33937419]
[1741139970443,0.31139069,591.11,589.32,0.33937419]
[1741139970637,0.33835794,591.09,589.32,0.33937419]
[1741139970840,0.31139069,591.08,589.32,0.33937419]
[1741139971042,0.33837512,591.06,589.32,0.33937419]
[1741139971337,0.31139069,591.05,589.32,0.33937419]
[1741139971538,0.45639069,591.05,589.32,0.33937419]
[1741139971742,0.145,591.05,589.32,0.33937419]
[1741139972039,0.31138935,591.04,589.32,0.33937419]
[1741139972445,0.31138976,591.03,589.39,1.26000879]
[1741139972638,0.31138976,591.04,589.39,1.26000879]
[1741139972844,0.31138976,591.03,589.39,1.26000879]
[1741139973043,0.31138976,591.02,589.39,1.26000879]
[1741139973244,0.31138976,591.01,589.39,1.26000879]
[1741139973440,0.31138976,591.0,589.39,1.26000879]
[1741139973744,0.145,591.05,589.39,1.26000879]
[1741139973745,0.31139206,590.99,589.39,1.26000879]
[1741139973945,0.31139206,590.98,589.39,1.26000879]
[1741139974249,0.31139206,590.97,589.39,1.26000879]
[1741139974545,0.31139206,590.96,589.51,1.26000879]
[1741139974748,0.31139206,590.95,589.51,1.26000879]
[1741139974945,0.31139206,590.94,589.51,1.26000879]
[1741139975140,0.31139206,590.93,589.51,1.26000879]
[1741139975340,0.31139206,590.92,589.51,1.26000879]
[1741139975545,0.31139206,591.04,589.51,1.26000879]
[1741139975745,0.33839802,591.02,589.51,1.26000879]
[1741139976046,0.31139206,591.01,589.51,1.26000879]
[1741139976248,0.3384152,590.99,589.51,1.26000879]
[1741139976445,0.31139206,590.98,589.51,1.26000879]
[1741139976746,0.33843238,590.96,589.51,1.26000879]
[1741139977045,0.31139278,590.95,589.5,1.26000879]
[1741139977346,0.33844956,590.93,589.5,1.26000879]
[1741139977649,0.31139278,590.92,589.5,1.26000879]
[1741139977846,0.33846674,590.9,589.5,1.26000879]
[1741139978043,0.31139278,590.89,589.5,1.26000879]
[1741139978245,0.33848393,590.87,589.5,1.26000879]
[1741139978446,0.31139278,590.86,589.5,1.26000879]
[1741139978747,0.33850111,590.84,589.5,1.26000879]
[1741139979046,0.31139278,590.83,589.5,1.26000879]
[1741139979246,0.3385183,590.81,589.5,1.26000879]
[1741139979442,0.31139278,590.8,589.5,1.26000879]
[1741139979646,0.33853549,590.78,589.5,1.26000879]
[1741139979848,0.31139278,590.77,589.55,1.26000879]
[1741139980047,0.33855268,590.75,589.55,1.26000879]
[1741139980245,0.31144766,590.74,589.55,1.26000879]
[1741139980441,0.33856988,590.72,589.55,1.26000879]
[1741139980748,0.31144766,590.71,589.55,1.26000879]
[1741139980945,0.33858707,590.69,589.55,1.26000879]
[1741139981247,0.31144766,590.68,589.55,1.26000879]
[1741139981448,0.33860427,590.66,589.55,1.26000879]
[1741139981642,0.31144766,590.65,589.55,1.26000879]
[1741139981847,0.33861573,590.64,589.55,1.26000879]
[1741139982043,0.31144562,590.63,589.45,1.26000879]
[1741139982248,0.3386272,590.62,589.45,1.26000879]
[1741139983844,0.3386272,590.62,589.36,1.26000879]
[1741139984149,0.3386272,590.62,589.32,0.33937419]
[1741139987749,0.3386272,590.62,589.36,1.26000879]
[1741139989353,0.3386272,590.62,589.37,0.3393454]
[1741139990451,0.3386272,590.62,589.63,1.26000879]
[1741139992955,0.3386272,590.62,589.56,1.26000879]
[1741139995858,0.3386272,590.62,589.73,1.26000879]
[1741139998963,0.3386272,590.62,589.78,1.26000879]
[1741140001359,2.62498275,591.54,589.78,1.26000879]
[1741140001564,0.33811198,591.52,589.78,1.26000879]
[1741140002066,0.3112208,591.51,589.78,1.26000879]
[1741140002464,1.00975342,591.41,589.78,1.26000879]
[1741140002664,1.00975342,591.38,589.78,1.26000879]
[1741140002866,1.00975342,591.31,589.78,1.26000879]
[1741140003160,0.3112208,591.3,589.78,1.26000879]
[1741140003365,0.3112208,591.29,589.77,1.26000879]
[1741140003568,1.00975342,591.29,589.77,1.26000879]
[1741140003762,0.44832314,591.28,589.77,1.26000879]
[1741140003966,0.31132314,591.27,589.77,1.26000879]
[1741140004169,0.31132314,591.26,589.77,1.26000879]
[1741140004467,0.31132314,591.25,589.77,1.26000879]
[1741140004668,0.31132314,591.24,589.77,1.26000879]
[1741140004868,0.31132314,591.23,589.77,1.26000879]
[1741140005066,0.31132314,591.22,589.77,1.26000879]
[1741140005268,0.137,591.28,589.77,1.26000879]
[1741140005465,0.31124556,591.27,589.77,1.26000879]
[1741140005863,0.31124556,591.27,589.71,1.26000879]
[1741140007469,0.31124556,591.26,589.71,1.26000879]
[1741140007670,0.31124556,591.25,589.71,1.26000879]
[1741140007868,0.31124556,591.24,589.81,1.26000879]
[1741140008071,0.31124556,591.23,589.81,1.26000879]
[1741140008367,0.31124556,591.22,589.81,1.26000879]
[1741140008571,0.31124556,591.27,589.81,1.26000879]
[1741140008765,0.31124556,591.26,589.81,1.26000879]
[1741140008965,0.31124556,591.25,589.81,1.26000879]
[1741140009165,0.31124556,591.24,589.81,1.26000879]
[1741140009470,0.33828354,591.22,589.81,1.26000879]
[1741140009670,0.31124556,591.21,589.81,1.26000879]
[1741140009965,0.33830071,591.19,589.81,1.26000879]
[1741140010172,0.31124556,591.18,589.81,1.26000879]
[1741140010374,0.33830071,591.19,589.81,1.26000879]
[1741140010566,0.31124672,591.18,589.81,1.26000879]
[1741140011364,0.31124672,591.18,589.85,1.26000879]
[1741140011770,0.33831788,591.16,589.85,1.26000879]
[1741140011967,0.31124672,591.15,589.85,1.26000879]
[1741140012572,0.33833505,591.13,589.85,1.26000879]
[1741140012772,0.31124672,591.12,589.85,1.26000879]
[1741140013067,0.33835222,591.1,589.85,1.26000879]
[1741140013265,0.31124672,591.09,589.85,1.26000879]
[1741140013666,0.31124672,591.09,589.64,1.26000879]
[1741140013867,0.33836939,591.07,589.64,1.26000879]
[1741140014072,0.31124672,591.06,589.64,1.26000879]
[1741140014269,0.33838657,591.04,589.64,1.26000879]
[1741140014469,0.31124672,591.03,589.64,1.26000879]
[1741140015574,0.31128099,591.02,589.65,1.26000879]
[1741140015773,0.31128099,591.03,589.65,1.26000879]
[1741140015968,0.31128099,591.02,589.65,1.26000879]
[1741140016176,0.31128348,591.01,589.65,1.26000879]
[1741140016374,0.31128348,591.0,589.65,1.26000879]
[1741140016676,0.31128348,590.99,589.65,1.26000879]
[1741140016877,0.31128348,591.03,589.65,1.26000879]
[1741140017074,0.33838657,591.04,589.65,1.26000879]
[1741140017273,0.31130762,591.03,589.65,1.26000879]
[1741140018478,0.31130762,591.03,589.77,1.26000879]
[1741140020178,0.31130762,591.02,589.77,1.26000879]
[1741140020473,0.31130762,591.01,589.77,1.26000879]
[1741140020674,0.31140751,591.0,589.77,1.26000879]
[1741140020871,0.31140751,591.03,589.77,1.26000879]
[1741140021076,0.31140751,591.02,589.71,1.26000879]
[1741140021277,0.31140751,591.01,589.71,1.26000879]
[1741140021472,0.33838657,591.04,589.71,1.26000879]
[1741140021473,0.31140751,591.03,589.71,1.26000879]
[1741140021675,0.33838657,591.04,589.71,1.26000879]
[1741140021676,0.31140751,591.02,589.71,1.26000879]
[1741140021877,0.31140751,591.01,589.71,1.26000879]
[1741140022073,0.3384152,590.99,589.71,1.26000879]
[1741140022277,0.31136603,590.98,589.71,1.26000879]
[1741140022577,0.3384152,590.99,589.71,1.26000879]
[1741140022578,0.3113728,590.97,589.71,1.26000879]
[1741140022783,0.3113728,590.96,589.71,1.26000879]
[1741140022981,0.3113728,590.95,589.71,1.26000879]
[1741140023177,0.3113728,590.98,589.56,1.26000879]
[1741140023373,0.3113728,590.97,589.56,1.26000879]
[1741140023578,0.3384381,590.95,589.56,1.26000879]
[1741140024380,0.31141467,590.94,589.56,1.26000879]
[1741140024676,0.31141467,590.93,589.56,1.26000879]
[1741140024883,0.31141467,590.92,589.56,1.26000879]
[1741140025080,0.31141467,590.91,589.56,1.26000879]
[1741140025276,0.3384381,590.95,589.56,1.26000879]
[1741140025277,0.31141467,590.9,589.56,1.26000879]
[1741140025474,0.31141467,590.89,589.56,1.26000879]
[1741140025680,0.33848393,590.87,589.56,1.26000879]
[1741140025980,0.31141467,590.86,589.56,1.26000879]
[1741140026176,0.31141467,590.85,589.56,1.26000879]
[1741140026480,0.31141467,590.85,589.45,1.26000879]
[1741140026481,0.31141467,590.84,589.57,1.26000879]
[1741140026681,0.31141467,590.83,589.57,1.26000879]
[1741140026881,0.31141467,590.82,589.57,1.26000879]
[1741140027077,0.31141467,590.81,589.57,1.26000879]
[1741140027281,0.31141467,590.8,589.57,1.26000879]
[1741140027480,0.31141467,590.86,589.57,1.26000879]
[1741140027677,0.33848393,590.87,589.57,1.26000879]
[1741140027878,0.31140422,590.86,589.57,1.26000879]
[1741140028682,0.33850111,590.84,589.57,1.26000879]
[1741140028882,0.31140422,590.83,589.57,1.26000879]
[1741140029086,0.31140422,590.83,589.37,0.3393454]
[1741140029586,0.3385183,590.81,589.37,0.3393454]
[1741140030081,0.3114176,590.8,589.37,0.3393454]
[1741140030281,0.3114176,590.79,589.37,0.3393454]
[1741140030586,0.3114176,590.78,589.37,0.3393454]
[1741140030781,0.3114176,590.77,589.37,0.3393454]
[1741140030983,0.3114176,590.8,589.37,0.3393454]
[1741140031185,0.3114176,590.79,589.37,0.3393454]
[1741140031488,0.3385183,590.81,589.37,0.3393454]
[1741140031489,0.3114176,590.78,589.37,0.3393454]
[1741140031680,0.3114176,590.77,589.37,0.3393454]
[1741140031881,0.33855268,590.75,589.37,0.3393454]
[1741140032185,0.3114176,590.74,589.37,0.3393454]
[1741140032586,0.33855268,590.75,589.37,0.3393454]
[1741140033085,0.31146885,590.74,589.37,0.3393454]
[1741140033290,0.31146885,590.74,589.25,1.26000879]
[1741140033586,0.33856988,590.72,589.25,1.26000879]
[1741140033785,0.31146885,590.71,589.25,1.26000879]
[1741140033987,0.31146885,590.7,589.25,1.26000879]
[1741140034189,0.31146885,590.71,589.25,1.26000879]
[1741140034484,0.31146885,590.7,589.25,1.26000879]
[1741140034680,0.3385928,590.68,589.25,1.26000879]
[1741140034887,0.31146885,590.67,589.25,1.26000879]
[1741140035082,0.33861,590.65,589.45,1.26000879]
[1741140035286,0.31146885,590.64,589.45,1.26000879]
[1741140035683,0.3386272,590.62,589.45,1.26000879]
[1741140035883,0.3115322,590.61,589.45,1.26000879]
[1741140036186,0.3386444,590.59,589.45,1.26000879]
[1741140036385,0.3115322,590.58,589.45,1.26000879]
[1741140036586,0.3386616,590.56,589.45,1.26000879]
[1741140036786,0.3115322,590.55,589.45,1.26000879]
[1741140036986,0.33867881,590.53,589.45,1.26000879]
[1741140037186,0.3115322,590.52,589.45,1.26000879]
[1741140037386,0.33869602,590.5,589.45,1.26000879]
[1741140037687,0.3115322,590.49,589.45,1.26000879]
[1741140038088,0.3115322,590.49,589.17,1.26000879]
[1741140038485,0.33871322,590.47,589.17,1.26000879]
[1741140038686,0.3115322,590.46,589.17,1.26000879]
[1741140038882,0.33873043,590.44,589.17,1.26000879]
[1741140039082,0.3115322,590.43,589.17,1.26000879]
[1741140039281,0.65029835,590.42,589.17,1.26000879]
[1741140039486,0.33874764,590.41,589.17,1.26000879]
[1741140039887,0.33874764,590.41,589.11,1.26000879]
[1741140040288,0.33874764,590.41,589.12,0.3394894]
[1741140041686,0.3115335,590.4,589.12,0.3394894]
[1741140041885,0.33875912,590.39,589.12,0.3394894]
[1741140043894,0.33875912,590.39,589.18,1.26000879]
[1741140044393,0.33875912,590.39,589.19,0.33944907]
[1741140046192,0.33875912,590.39,589.21,1.26000879]
[1741140046692,0.33875912,590.39,589.22,0.33943179]
[1741140048495,0.33875912,590.39,589.39,1.26000879]
[1741140049294,0.33875912,590.39,589.4,0.33932813]
[1741140051995,1.20458454,591.07,589.4,0.33932813]
[1741140052196,0.33838084,591.05,589.4,0.33932813]
[1741140052396,0.31132428,591.04,589.4,0.33932813]
[1741140052591,0.33839802,591.02,589.4,0.33932813]
[1741140052998,0.31132428,591.01,589.4,0.33932813]
[1741140053193,0.3384152,590.99,589.4,0.33932813]
[1741140053396,0.31132606,590.98,589.4,0.33932813]
[1741140053904,0.31133721,590.97,589.4,0.33932813]
[1741140054098,0.3384381,590.95,589.4,0.33932813]
[1741140054294,0.31133475,590.94,589.4,0.33932813]
[1741140054493,0.33845529,590.92,589.4,0.33932813]
[1741140055396,0.31133281,590.91,589.4,0.33932813]
[1741140055593,0.33847247,590.89,589.4,0.33932813]
[1741140055896,0.31133972,590.88,589.4,0.33932813]
[1741140056096,0.33848965,590.86,589.4,0.33932813]
[1741140056297,0.31133972,590.85,589.4,0.33932813]
[1741140056496,0.33850684,590.83,589.4,0.33932813]
[1741140056799,0.31133972,590.82,589.4,0.33932813]
[1741140057099,0.3385183,590.81,589.4,0.33932813]
[1741140057795,0.31135485,590.8,589.6,1.26000879]
[1741140057998,0.33852976,590.79,589.6,1.26000879]
[1741140058199,0.31135485,590.78,589.6,1.26000879]
[1741140058493,0.33854122,590.77,589.6,1.26000879]
[1741140058699,0.31135485,590.76,589.6,1.26000879]
[1741140058899,0.33855268,590.75,589.6,1.26000879]
[1741140059096,0.31135485,590.74,589.6,1.26000879]
[1741140059302,0.33856414,590.73,589.6,1.26000879]
[1741140059498,0.31135485,590.72,589.6,1.26000879]
[1741140059695,0.33857561,590.71,589.6,1.26000879]
[1741140059897,0.31135485,590.7,589.6,1.26000879]
[1741140060098,0.33858707,590.69,589.6,1.26000879]
[1741140060399,0.31135485,590.68,589.6,1.26000879]